[Event "Titled Tuesday Blitz January 03 Early 2023"]
[White "Santos Ruiz, Miguel"]
[Black "Erzhanov, Arman"]
[WhiteFideId "22291482"]
[BlackFideId "4138821"]
[WhiteElo "2590"]
[BlackElo "2228"]
[Result "1-0"]
[Round "07"]
[TimeControl "180+2"]
[Date "2023.01.03"]
[WhiteClock "0:00:15"]
[BlackClock "0:00:09"]

1. e4 {[%clk 0:03:00]}  d6 {[%clk 0:02:58]} 2. d4 {[%clk 0:03:00]}  Nf6 {[%clk 0:02:58]} 3. Bd3 {[%clk 0:03:01]}  e5 {[%clk 0:02:58]} 4. c3 {[%clk 0:03:00]}  d5 {[%clk 0:02:59]} 5. dxe5 {[%clk 0:02:56]}  Nxe4 {[%clk 0:02:59]} 6. Nf3 {[%clk 0:02:57]}  Nc6 {[%clk 0:02:56]} 7. O-O {[%clk 0:02:57]}  Bg4 {[%clk 0:02:55]} 8. Bf4 {[%clk 0:02:48]}  Be7 {[%clk 0:02:50]} 9. h3 {[%clk 0:02:48]}  Bh5 {[%clk 0:02:48]} 10. Nbd2 {[%clk 0:02:46]}  Nxd2 {[%clk 0:02:46]} 11. Qxd2 {[%clk 0:02:45]}  Bxf3 {[%clk 0:02:44]} 12. gxf3 {[%clk 0:02:46]}  h6 {[%clk 0:02:42]} 13. Bg3 {[%clk 0:02:44]}  Bh4 {[%clk 0:02:39]} 14. f4 {[%clk 0:02:40]}  Bxg3 {[%clk 0:02:21]} 15. fxg3 {[%clk 0:02:40]}  O-O {[%clk 0:02:19]} 16. Bc2 {[%clk 0:02:36]}  d4 {[%clk 0:02:14]} 17. Qd3 {[%clk 0:02:32]}  g6 {[%clk 0:02:05]} 18. Rad1 {[%clk 0:02:17]}  dxc3 {[%clk 0:02:04]} 19. Qxc3 {[%clk 0:02:17]}  Qe7 {[%clk 0:02:04]} 20. Be4 {[%clk 0:01:53]}  Rab8 {[%clk 0:01:39]} 21. Rd2 {[%clk 0:01:42]}  Rfd8 {[%clk 0:01:37]} 22. Rfd1 {[%clk 0:01:42]}  Rxd2 {[%clk 0:01:37]} 23. Rxd2 {[%clk 0:01:43]}  Rd8 {[%clk 0:01:31]} 24. Kh2 {[%clk 0:01:29]}  Rxd2+ {[%clk 0:01:30]} 25. Qxd2 {[%clk 0:01:29]}  Nd8 {[%clk 0:01:26]} 26. h4 {[%clk 0:01:25]}  h5 {[%clk 0:01:25]} 27. Qd4 {[%clk 0:01:11]}  c5 {[%clk 0:01:19]} 28. Qc4 {[%clk 0:01:08]}  b6 {[%clk 0:01:19]} 29. Bd5 {[%clk 0:01:05]}  Ne6 {[%clk 0:01:15]} 30. Kg2 {[%clk 0:01:04]}  Nd4 {[%clk 0:01:14]} 31. Kf2 {[%clk 0:01:04]}  Qd7 {[%clk 0:01:13]} 32. b4 {[%clk 0:00:58]}  Qc7 {[%clk 0:00:47]} 33. bxc5 {[%clk 0:00:57]}  bxc5 {[%clk 0:00:47]} 34. e6 {[%clk 0:00:51]}  fxe6 {[%clk 0:00:46]} 35. Bxe6+ {[%clk 0:00:51]}  Kg7 {[%clk 0:00:46]} 36. Bd5 {[%clk 0:00:47]}  Qe7 {[%clk 0:00:46]} 37. Bg2 {[%clk 0:00:46]}  Kf6 {[%clk 0:00:43]} 38. a4 {[%clk 0:00:39]}  a5 {[%clk 0:00:40]} 39. Qa6+ {[%clk 0:00:28]}  Kg7 {[%clk 0:00:39]} 40. Qxa5 {[%clk 0:00:26]}  Qe2+ {[%clk 0:00:39]} 41. Kg1 {[%clk 0:00:27]}  Qe3+ {[%clk 0:00:34]} 42. Kh2 {[%clk 0:00:26]}  Ne2 {[%clk 0:00:33]} 43. Qc7+ {[%clk 0:00:25]}  Kh6 {[%clk 0:00:33]} 44. f5 {[%clk 0:00:25]}  gxf5 {[%clk 0:00:25]} 45. Qd6+ {[%clk 0:00:22]}  Kg7 {[%clk 0:00:26]} 46. Qd7+ {[%clk 0:00:21]}  Kf6 {[%clk 0:00:26]} 47. Qd6+ {[%clk 0:00:22]}  Kg7 {[%clk 0:00:23]} 48. Qc7+ {[%clk 0:00:14]}  Kf6 {[%clk 0:00:22]} 49. Qb8 {[%clk 0:00:15]}  f4 {[%clk 0:00:20]} 50. Qf8+ {[%clk 0:00:14]}  Ke5 {[%clk 0:00:18]} 51. gxf4+ {[%clk 0:00:13]}  Qxf4+ {[%clk 0:00:17]} 52. Qxf4+ {[%clk 0:00:13]}  Kxf4 {[%clk 0:00:17]} 53. a5 {[%clk 0:00:13]}  Nd4 {[%clk 0:00:15]} 54. a6 {[%clk 0:00:11]}  Nb5 {[%clk 0:00:16]} 55. Bf1 {[%clk 0:00:12]}  Na7 {[%clk 0:00:15]} 56. Kh3 {[%clk 0:00:12]}  Kf3 {[%clk 0:00:14]} 57. Bc4 {[%clk 0:00:11]}  Kf4 {[%clk 0:00:12]} 58. Bf7 {[%clk 0:00:11]}  Nc6 {[%clk 0:00:10]} 59. Be6 {[%clk 0:00:09]}  Na7 {[%clk 0:00:09]} 60. Bc4 {[%clk 0:00:08]}  Ke4 {[%clk 0:00:08]} 61. Kg3 {[%clk 0:00:08]}  Kd4 {[%clk 0:00:09]} 62. Bf7 {[%clk 0:00:08]}  c4 {[%clk 0:00:09]} 63. Bxh5 {[%clk 0:00:09]}  c3 {[%clk 0:00:08]} 64. Bg6 {[%clk 0:00:09]}  Kc5 {[%clk 0:00:05]} 65. h5 {[%clk 0:00:10]}  Kb5 {[%clk 0:00:06]} 66. h6 {[%clk 0:00:10]}  Kxa6 {[%clk 0:00:06]} 67. h7 {[%clk 0:00:10]}  Nb5 {[%clk 0:00:06]} 68. h8=Q {[%clk 0:00:10]}  Ka5 {[%clk 0:00:06]} 69. Bd3 {[%clk 0:00:10]}  Na3 {[%clk 0:00:05]} 70. Qxc3+ {[%clk 0:00:09]}  Ka4 {[%clk 0:00:04]} 71. Bc2+ {[%clk 0:00:09]}  Nxc2 {[%clk 0:00:03]} 72. Qxc2+ {[%clk 0:00:10]}  Kb5 {[%clk 0:00:04]} 73. Qc3 {[%clk 0:00:10]}  Kb6 {[%clk 0:00:04]} 74. Qc4 {[%clk 0:00:10]}  Kb7 {[%clk 0:00:05]} 75. Qc5 {[%clk 0:00:11]}  Kb8 {[%clk 0:00:05]} 76. Qe7 {[%clk 0:00:11]}  Kc8 {[%clk 0:00:06]} 77. Kf4 {[%clk 0:00:12]}  Kb8 {[%clk 0:00:07]} 78. Ke5 {[%clk 0:00:13]}  Ka8 {[%clk 0:00:07]} 79. Kd6 {[%clk 0:00:14]}  Kb8 {[%clk 0:00:08]} 80. Kc6 {[%clk 0:00:14]}  Ka8 {[%clk 0:00:09]} 81. Qb7# {[%clk 0:00:15]} 1-0


[Site "https://www.chess.com"]

[Event "Titled Tuesday Blitz January 03 Early 2023"]
[White "Mekhitarian, Krikor Sevag"]
[Black "Fiorito, Joaquin"]
[WhiteFideId "2107660"]
[BlackFideId "180173"]
[WhiteElo "2537"]
[BlackElo "2405"]
[Result "1-0"]
[Round "07"]
[TimeControl "180+2"]
[Date "2023.01.03"]
[WhiteClock "0:00:42"]
[BlackClock "0:01:00"]

1. d4 {[%clk 0:03:00]}  Nf6 {[%clk 0:02:59]} 2. c4 {[%clk 0:03:00]}  e6 {[%clk 0:03:00]} 3. Bg5 {[%clk 0:02:45]}  h6 {[%clk 0:02:55]} 4. Bh4 {[%clk 0:02:43]}  d5 {[%clk 0:02:51]} 5. e3 {[%clk 0:02:43]}  Be7 {[%clk 0:02:45]} 6. Nc3 {[%clk 0:02:42]}  c6 {[%clk 0:02:46]} 7. Bd3 {[%clk 0:02:40]}  Nbd7 {[%clk 0:02:44]} 8. cxd5 {[%clk 0:02:38]}  cxd5 {[%clk 0:02:38]} 9. Nf3 {[%clk 0:02:29]}  O-O {[%clk 0:02:38]} 10. O-O {[%clk 0:02:26]}  a6 {[%clk 0:02:38]} 11. Rc1 {[%clk 0:02:24]}  b5 {[%clk 0:02:37]} 12. Ne5 {[%clk 0:02:06]}  Nxe5 {[%clk 0:02:24]} 13. dxe5 {[%clk 0:02:07]}  Nd7 {[%clk 0:02:24]} 14. Bxe7 {[%clk 0:02:07]}  Qxe7 {[%clk 0:02:25]} 15. f4 {[%clk 0:02:07]}  Bb7 {[%clk 0:02:22]} 16. Ne2 {[%clk 0:02:08]}  Rac8 {[%clk 0:02:17]} 17. Qd2 {[%clk 0:02:06]}  f6 {[%clk 0:02:13]} 18. exf6 {[%clk 0:02:03]}  Qxf6 {[%clk 0:02:14]} 19. Rxc8 {[%clk 0:01:53]}  Rxc8 {[%clk 0:02:14]} 20. Nd4 {[%clk 0:01:49]}  e5 {[%clk 0:01:52]} 21. fxe5 {[%clk 0:01:40]}  Qxe5 {[%clk 0:01:52]} 22. Bf5 {[%clk 0:01:28]}  Rd8 {[%clk 0:01:36]} 23. Be6+ {[%clk 0:01:05]}  Kh8 {[%clk 0:01:35]} 24. Bxd7 {[%clk 0:01:04]}  Rxd7 {[%clk 0:01:34]} 25. Rf8+ {[%clk 0:01:01]}  Kh7 {[%clk 0:01:34]} 26. Qd3+ {[%clk 0:01:01]}  Qe4 {[%clk 0:01:33]} 27. Qxe4+ {[%clk 0:00:57]}  dxe4 {[%clk 0:01:34]} 28. h3 {[%clk 0:00:47]}  Rc7 {[%clk 0:01:28]} 29. Kh2 {[%clk 0:00:47]}  Kg6 {[%clk 0:01:23]} 30. Re8 {[%clk 0:00:44]}  Kf6 {[%clk 0:01:19]} 31. Re6+ {[%clk 0:00:44]}  Kf7 {[%clk 0:01:19]} 32. Rb6 {[%clk 0:00:43]}  g6 {[%clk 0:01:12]} 33. Kg3 {[%clk 0:00:42]}  Kg7 {[%clk 0:01:00]} 34. Ne6+ {[%clk 0:00:42]} 1-0


[Site "https://www.chess.com"]

[Event "Titled Tuesday Blitz January 03 Early 2023"]
[White "Rakhmatullaev, Almas"]
[Black "Fisher_TheGalactic"]
[WhiteFideId "14205793"]
[WhiteElo "2275"]
[BlackElo "2521"]
[Result "1-0"]
[Round "07"]
[TimeControl "180+2"]
[Date "2023.01.03"]
[WhiteClock "0:00:19"]
[BlackClock "0:00:01"]

1. e4 {[%clk 0:03:00]}  b6 {[%clk 0:02:57]} 2. d4 {[%clk 0:02:58]}  Bb7 {[%clk 0:02:57]} 3. Nc3 {[%clk 0:02:59]}  e6 {[%clk 0:02:57]} 4. Bd3 {[%clk 0:02:59]}  Bb4 {[%clk 0:02:57]} 5. Ne2 {[%clk 0:02:59]}  Nf6 {[%clk 0:02:57]} 6. O-O {[%clk 0:02:58]}  d5 {[%clk 0:02:53]} 7. exd5 {[%clk 0:02:56]}  exd5 {[%clk 0:02:51]} 8. Ng3 {[%clk 0:02:53]}  O-O {[%clk 0:02:50]} 9. Qf3 {[%clk 0:02:50]}  Nbd7 {[%clk 0:02:46]} 10. Bg5 {[%clk 0:02:33]}  h6 {[%clk 0:02:45]} 11. Bh4 {[%clk 0:02:26]}  c5 {[%clk 0:02:19]} 12. Nf5 {[%clk 0:02:18]}  cxd4 {[%clk 0:02:18]} 13. Ne2 {[%clk 0:02:11]}  Ne5 {[%clk 0:02:16]} 14. Qg3 {[%clk 0:02:10]}  Ng6 {[%clk 0:02:13]} 15. Nf4 {[%clk 0:02:08]}  Qc7 {[%clk 0:01:41]} 16. Nxg6 {[%clk 0:01:51]}  Qxg3 {[%clk 0:01:41]} 17. Nge7+ {[%clk 0:01:47]}  Kh8 {[%clk 0:01:41]} 18. Bxg3 {[%clk 0:01:31]}  Rfe8 {[%clk 0:01:37]} 19. Bb5 {[%clk 0:00:58]}  Rxe7 {[%clk 0:01:36]} 20. Nxe7 {[%clk 0:00:56]}  Bxe7 {[%clk 0:01:37]} 21. Be5 {[%clk 0:00:56]}  Bc5 {[%clk 0:01:32]} 22. Bxf6 {[%clk 0:00:51]}  gxf6 {[%clk 0:01:33]} 23. Bd3 {[%clk 0:00:50]}  Kg7 {[%clk 0:01:29]} 24. Rfe1 {[%clk 0:00:50]}  Rd8 {[%clk 0:01:24]} 25. Re2 {[%clk 0:00:51]}  Bc8 {[%clk 0:01:24]} 26. Rae1 {[%clk 0:00:50]}  Be6 {[%clk 0:01:24]} 27. f4 {[%clk 0:00:50]}  f5 {[%clk 0:01:24]} 28. g3 {[%clk 0:00:48]}  Kf6 {[%clk 0:01:24]} 29. Kg2 {[%clk 0:00:47]}  a5 {[%clk 0:01:21]} 30. Kf3 {[%clk 0:00:47]}  a4 {[%clk 0:01:20]} 31. a3 {[%clk 0:00:44]}  Ra8 {[%clk 0:01:14]} 32. h3 {[%clk 0:00:44]}  h5 {[%clk 0:01:14]} 33. Rh1 {[%clk 0:00:35]}  Rb8 {[%clk 0:01:05]} 34. Bb5 {[%clk 0:00:33]}  Ra8 {[%clk 0:01:05]} 35. Rd1 {[%clk 0:00:29]}  Ra5 {[%clk 0:01:01]} 36. Bd3 {[%clk 0:00:28]}  Ra8 {[%clk 0:00:54]} 37. Kg2 {[%clk 0:00:27]}  Rg8 {[%clk 0:00:52]} 38. Kf3 {[%clk 0:00:27]}  Ra8 {[%clk 0:00:51]} 39. Rg1 {[%clk 0:00:27]}  Rb8 {[%clk 0:00:49]} 40. Bb5 {[%clk 0:00:26]}  Ra8 {[%clk 0:00:49]} 41. Bd3 {[%clk 0:00:24]}  Rb8 {[%clk 0:00:47]} 42. g4 {[%clk 0:00:23]}  hxg4+ {[%clk 0:00:45]} 43. hxg4 {[%clk 0:00:23]}  fxg4+ {[%clk 0:00:46]} 44. Kg2 {[%clk 0:00:22]}  Bf5 {[%clk 0:00:22]} 45. Re5 {[%clk 0:00:21]}  Bxd3 {[%clk 0:00:08]} 46. cxd3 {[%clk 0:00:22]}  Rd8 {[%clk 0:00:09]} 47. Rh1 {[%clk 0:00:19]}  Kg6 {[%clk 0:00:06]} 48. Rg5+ {[%clk 0:00:18]}  Kf6 {[%clk 0:00:06]} 49. Rh6+ {[%clk 0:00:18]}  Ke7 {[%clk 0:00:07]} 50. Re5+ {[%clk 0:00:19]}  Kd7 {[%clk 0:00:03]} 51. Rxd5+ {[%clk 0:00:19]}  Kc7 {[%clk 0:00:04]} 52. Rxd8 {[%clk 0:00:19]}  Kxd8 {[%clk 0:00:05]} 53. Kg3 {[%clk 0:00:19]}  Ke7 {[%clk 0:00:03]} 54. Kxg4 {[%clk 0:00:19]}  Bd6 {[%clk 0:00:04]} 55. Kf5 {[%clk 0:00:19]}  Bc5 {[%clk 0:00:04]} 56. Ke4 {[%clk 0:00:20]}  f6 {[%clk 0:00:03]} 57. f5 {[%clk 0:00:20]}  b5 {[%clk 0:00:02]} 58. Kd5 {[%clk 0:00:20]}  Bb6 {[%clk 0:00:01]} 59. Rh7+ {[%clk 0:00:19]}  Kf8 {[%clk 0:00:01]} 60. Ke6 {[%clk 0:00:20]}  Kg8 {[%clk 0:00:01]} 61. Rb7 {[%clk 0:00:19]} 1-0


[Site "https://www.chess.com"]

[Event "Titled Tuesday Blitz January 03 Early 2023"]
[White "Maksimovic, Bojan"]
[Black "Blanco Acevedo, Cristobal Jose"]
[WhiteFideId "14408120"]
[BlackFideId "3900525"]
[WhiteElo "2486"]
[BlackElo "2310"]
[Result "1-0"]
[Round "07"]
[TimeControl "180+2"]
[Date "2023.01.03"]
[WhiteClock "0:01:29"]
[BlackClock "0:00:04"]

1. g3 {[%clk 0:03:00]}  d5 {[%clk 0:02:59]} 2. Bg2 {[%clk 0:03:01]}  Nf6 {[%clk 0:02:59]} 3. Nf3 {[%clk 0:03:01]}  c5 {[%clk 0:02:58]} 4. O-O {[%clk 0:02:59]}  Nc6 {[%clk 0:02:58]} 5. d4 {[%clk 0:02:58]}  e6 {[%clk 0:02:57]} 6. c4 {[%clk 0:02:58]}  dxc4 {[%clk 0:02:52]} 7. dxc5 {[%clk 0:02:57]}  Qxd1 {[%clk 0:02:51]} 8. Rxd1 {[%clk 0:02:58]}  Bxc5 {[%clk 0:02:51]} 9. Nbd2 {[%clk 0:02:58]}  O-O {[%clk 0:02:47]} 10. Nxc4 {[%clk 0:02:58]}  Ne4 {[%clk 0:02:44]} 11. Be3 {[%clk 0:02:46]}  Be7 {[%clk 0:02:29]} 12. Rac1 {[%clk 0:02:31]}  Rd8 {[%clk 0:02:26]} 13. Nfe5 {[%clk 0:02:30]}  Rxd1+ {[%clk 0:02:24]} 14. Rxd1 {[%clk 0:02:31]}  Nxe5 {[%clk 0:02:22]} 15. Nxe5 {[%clk 0:02:32]}  Nf6 {[%clk 0:02:13]} 16. h3 {[%clk 0:02:28]}  a5 {[%clk 0:02:10]} 17. a4 {[%clk 0:02:25]}  h6 {[%clk 0:02:09]} 18. g4 {[%clk 0:02:25]}  Nd5 {[%clk 0:01:59]} 19. Bxd5 {[%clk 0:02:16]}  exd5 {[%clk 0:01:59]} 20. Rxd5 {[%clk 0:02:17]}  Be6 {[%clk 0:01:59]} 21. Rb5 {[%clk 0:02:17]}  f6 {[%clk 0:01:43]} 22. Ng6 {[%clk 0:02:17]}  Bb4 {[%clk 0:01:40]} 23. Rxb7 {[%clk 0:02:17]}  Kh7 {[%clk 0:01:35]} 24. Nf4 {[%clk 0:02:15]}  Bc8 {[%clk 0:01:33]} 25. Rc7 {[%clk 0:02:08]}  Bd6 {[%clk 0:01:31]} 26. Rc6 {[%clk 0:02:08]}  Be5 {[%clk 0:01:30]} 27. Nd3 {[%clk 0:02:08]}  Bb7 {[%clk 0:01:13]} 28. Nxe5 {[%clk 0:02:08]}  fxe5 {[%clk 0:01:13]} 29. Rc5 {[%clk 0:02:08]}  Rd8 {[%clk 0:01:09]} 30. f3 {[%clk 0:02:06]}  e4 {[%clk 0:01:09]} 31. f4 {[%clk 0:02:06]}  Rd1+ {[%clk 0:01:06]} 32. Kf2 {[%clk 0:02:07]}  Rh1 {[%clk 0:01:06]} 33. Kg2 {[%clk 0:02:03]}  Re1 {[%clk 0:01:06]} 34. Kf2 {[%clk 0:02:03]}  Rh1 {[%clk 0:01:06]} 35. Rxa5 {[%clk 0:02:01]}  Rxh3 {[%clk 0:01:05]} 36. b4 {[%clk 0:02:01]}  Bc8 {[%clk 0:01:01]} 37. f5 {[%clk 0:02:01]}  h5 {[%clk 0:01:01]} 38. gxh5 {[%clk 0:02:01]}  Rxh5 {[%clk 0:01:00]} 39. Rc5 {[%clk 0:02:02]}  Bxf5 {[%clk 0:00:59]} 40. a5 {[%clk 0:02:02]}  g6 {[%clk 0:00:57]} 41. a6 {[%clk 0:02:02]}  Rh2+ {[%clk 0:00:55]} 42. Ke1 {[%clk 0:02:02]}  Rh1+ {[%clk 0:00:55]} 43. Kd2 {[%clk 0:02:02]}  Ra1 {[%clk 0:00:53]} 44. b5 {[%clk 0:02:03]}  Ra2+ {[%clk 0:00:50]} 45. Rc2 {[%clk 0:02:03]}  Ra5 {[%clk 0:00:50]} 46. Rb2 {[%clk 0:02:03]}  Bc8 {[%clk 0:00:47]} 47. Bd4 {[%clk 0:01:56]}  g5 {[%clk 0:00:45]} 48. Ke3 {[%clk 0:01:56]}  Kg6 {[%clk 0:00:33]} 49. Kxe4 {[%clk 0:01:57]}  Bd7 {[%clk 0:00:34]} 50. b6 {[%clk 0:01:54]}  Rxa6 {[%clk 0:00:30]} 51. b7 {[%clk 0:01:54]}  Bc6+ {[%clk 0:00:28]} 52. Kd3 {[%clk 0:01:53]}  Ra3+ {[%clk 0:00:27]} 53. Bc3 {[%clk 0:01:54]}  Bxb7 {[%clk 0:00:26]} 54. Rxb7 {[%clk 0:01:54]}  g4 {[%clk 0:00:25]} 55. e4 {[%clk 0:01:53]}  Kg5 {[%clk 0:00:24]} 56. Kd4 {[%clk 0:01:49]}  Kf4 {[%clk 0:00:23]} 57. Rf7+ {[%clk 0:01:48]}  Kg3 {[%clk 0:00:22]} 58. Be1+ {[%clk 0:01:49]}  Kh3 {[%clk 0:00:21]} 59. Rh7+ {[%clk 0:01:48]}  Kg2 {[%clk 0:00:20]} 60. Rg7 {[%clk 0:01:49]}  Kf3 {[%clk 0:00:21]} 61. Rf7+ {[%clk 0:01:48]}  Ke2 {[%clk 0:00:20]} 62. Bh4 {[%clk 0:01:47]}  Rh3 {[%clk 0:00:19]} 63. Be7 {[%clk 0:01:41]}  g3 {[%clk 0:00:19]} 64. Rg7 {[%clk 0:01:40]}  Kf1 {[%clk 0:00:18]} 65. Rf7+ {[%clk 0:01:38]}  Ke2 {[%clk 0:00:18]} 66. Rg7 {[%clk 0:01:28]}  Kf1 {[%clk 0:00:17]} 67. Kd5 {[%clk 0:01:29]}  g2 {[%clk 0:00:07]} 68. Bc5 {[%clk 0:01:29]}  Rh5+ {[%clk 0:00:06]} 69. e5 {[%clk 0:01:30]}  Rxe5+ {[%clk 0:00:06]} 70. Kxe5 {[%clk 0:01:30]}  g1=Q {[%clk 0:00:04]} 71. Rxg1+ {[%clk 0:01:29]} 1-0


[Site "https://www.chess.com"]

[Event "Titled Tuesday Blitz January 03 Early 2023"]
[White "Aloma Vidal, Robert"]
[Black "Krstic, Milos"]
[WhiteFideId "2260409"]
[BlackFideId "954888"]
[WhiteElo "2442"]
[BlackElo "2183"]
[Result "1-0"]
[Round "07"]
[TimeControl "180+2"]
[Date "2023.01.03"]
[WhiteClock "0:00:56"]
[BlackClock "0:00:15"]

1. e4 {[%clk 0:03:00]}  c6 {[%clk 0:02:59]} 2. d4 {[%clk 0:03:00]}  d5 {[%clk 0:03:00]} 3. e5 {[%clk 0:03:00]}  Bf5 {[%clk 0:02:59]} 4. Nf3 {[%clk 0:03:01]}  e6 {[%clk 0:03:00]} 5. Be2 {[%clk 0:03:01]}  Ne7 {[%clk 0:03:00]} 6. O-O {[%clk 0:03:02]}  Nd7 {[%clk 0:02:57]} 7. a4 {[%clk 0:03:02]}  Bg6 {[%clk 0:02:54]} 8. a5 {[%clk 0:03:01]}  Nf5 {[%clk 0:02:54]} 9. a6 {[%clk 0:03:00]}  b6 {[%clk 0:02:54]} 10. c4 {[%clk 0:02:53]}  Be7 {[%clk 0:02:51]} 11. cxd5 {[%clk 0:02:51]}  cxd5 {[%clk 0:02:52]} 12. Nc3 {[%clk 0:02:48]}  O-O {[%clk 0:02:51]} 13. Bf4 {[%clk 0:02:19]}  h6 {[%clk 0:02:34]} 14. h3 {[%clk 0:02:17]}  Nh4 {[%clk 0:02:31]} 15. Qd2 {[%clk 0:02:08]}  Nxf3+ {[%clk 0:02:30]} 16. Bxf3 {[%clk 0:02:08]}  Re8 {[%clk 0:02:26]} 17. Be2 {[%clk 0:01:48]}  Rc8 {[%clk 0:02:11]} 18. Rfc1 {[%clk 0:01:44]}  Nb8 {[%clk 0:02:00]} 19. Bb5 {[%clk 0:01:44]}  Rf8 {[%clk 0:01:59]} 20. Ne2 {[%clk 0:01:32]}  Kh7 {[%clk 0:01:17]} 21. Rxc8 {[%clk 0:01:31]}  Qxc8 {[%clk 0:01:18]} 22. Rc1 {[%clk 0:01:31]}  Qd8 {[%clk 0:01:19]} 23. Qc3 {[%clk 0:01:31]}  Bg5 {[%clk 0:00:52]} 24. Qc7 {[%clk 0:01:29]}  Bxf4 {[%clk 0:00:46]} 25. Qxd8 {[%clk 0:01:26]}  Rxd8 {[%clk 0:00:47]} 26. Nxf4 {[%clk 0:01:25]}  Be4 {[%clk 0:00:17]} 27. f3 {[%clk 0:01:21]}  Bf5 {[%clk 0:00:16]} 28. g4 {[%clk 0:01:21]}  g5 {[%clk 0:00:16]} 29. gxf5 {[%clk 0:01:03]}  gxf4 {[%clk 0:00:16]} 30. Rc7 {[%clk 0:01:03]}  exf5 {[%clk 0:00:15]} 31. Rxf7+ {[%clk 0:01:01]}  Kg6 {[%clk 0:00:16]} 32. Rxa7 {[%clk 0:01:00]}  Rc8 {[%clk 0:00:15]} 33. Rb7 {[%clk 0:00:57]}  Nc6 {[%clk 0:00:15]} 34. Rxb6 {[%clk 0:00:56]} 1-0


[Site "https://www.chess.com"]

[Event "Titled Tuesday Blitz January 03 Early 2023"]
[White "Kopczynski, Michal"]
[Black "Piesik, Piotr"]
[WhiteFideId "1124200"]
[BlackFideId "1136194"]
[WhiteElo "2225"]
[BlackElo "2426"]
[Result "0-1"]
[Round "07"]
[TimeControl "180+2"]
[Date "2023.01.03"]
[WhiteClock "0:00:07"]
[BlackClock "0:00:03"]

1. e4 {[%clk 0:03:00]}  g6 {[%clk 0:02:22]} 2. d4 {[%clk 0:03:00]}  Bg7 {[%clk 0:02:22]} 3. Nc3 {[%clk 0:03:01]}  c6 {[%clk 0:02:22]} 4. Be3 {[%clk 0:03:02]}  d5 {[%clk 0:02:23]} 5. e5 {[%clk 0:03:02]}  Nh6 {[%clk 0:02:23]} 6. Qd2 {[%clk 0:03:01]}  Nf5 {[%clk 0:02:22]} 7. Bg5 {[%clk 0:03:00]}  f6 {[%clk 0:02:21]} 8. exf6 {[%clk 0:03:00]}  exf6 {[%clk 0:02:20]} 9. Bf4 {[%clk 0:02:59]}  Kf7 {[%clk 0:02:18]} 10. O-O-O {[%clk 0:02:58]}  Nd7 {[%clk 0:02:14]} 11. h4 {[%clk 0:02:58]}  h5 {[%clk 0:02:12]} 12. f3 {[%clk 0:02:57]}  Nb6 {[%clk 0:02:11]} 13. g4 {[%clk 0:02:56]}  Nd6 {[%clk 0:02:10]} 14. gxh5 {[%clk 0:02:55]}  Rxh5 {[%clk 0:02:09]} 15. b3 {[%clk 0:02:43]}  Nf5 {[%clk 0:02:01]} 16. Bh3 {[%clk 0:02:37]}  Nxh4 {[%clk 0:01:57]} 17. Bg4 {[%clk 0:02:24]}  Rh8 {[%clk 0:01:50]} 18. Nh3 {[%clk 0:02:13]}  Nf5 {[%clk 0:01:44]} 19. Nf2 {[%clk 0:02:01]}  Rxh1 {[%clk 0:01:34]} 20. Rxh1 {[%clk 0:02:02]}  Be6 {[%clk 0:01:33]} 21. Ne2 {[%clk 0:01:55]}  Qd7 {[%clk 0:01:32]} 22. Nd3 {[%clk 0:01:53]}  Rh8 {[%clk 0:01:24]} 23. Rxh8 {[%clk 0:01:45]}  Bxh8 {[%clk 0:01:23]} 24. Nc5 {[%clk 0:01:46]}  Qe7 {[%clk 0:01:23]} 25. Qa5 {[%clk 0:01:37]}  Nc8 {[%clk 0:01:12]} 26. Nxe6 {[%clk 0:00:59]}  Qxe6 {[%clk 0:01:13]} 27. Ng3 {[%clk 0:00:59]}  Nce7 {[%clk 0:01:07]} 28. Nxf5 {[%clk 0:00:44]}  Nxf5 {[%clk 0:01:06]} 29. Qc7+ {[%clk 0:00:42]}  Qe7 {[%clk 0:01:03]} 30. Qc8 {[%clk 0:00:20]}  Bg7 {[%clk 0:00:43]} 31. Bxf5 {[%clk 0:00:20]}  gxf5 {[%clk 0:00:43]} 32. Qxf5 {[%clk 0:00:21]}  Qe6 {[%clk 0:00:37]} 33. Qh5+ {[%clk 0:00:20]}  Ke7 {[%clk 0:00:34]} 34. Kb2 {[%clk 0:00:21]}  f5 {[%clk 0:00:28]} 35. Qh7 {[%clk 0:00:20]}  Qf7 {[%clk 0:00:27]} 36. Bg5+ {[%clk 0:00:20]}  Kd7 {[%clk 0:00:27]} 37. Qh4 {[%clk 0:00:18]}  c5 {[%clk 0:00:23]} 38. Be3 {[%clk 0:00:17]}  Qf6 {[%clk 0:00:08]} 39. Qh5 {[%clk 0:00:08]}  cxd4 {[%clk 0:00:07]} 40. Bg5 {[%clk 0:00:09]}  Qe6 {[%clk 0:00:06]} 41. Qh7 {[%clk 0:00:08]}  Qf7 {[%clk 0:00:02]} 42. Bh6 {[%clk 0:00:07]}  d3+ {[%clk 0:00:02]} 43. Qxg7 {[%clk 0:00:07]}  Qxg7+ {[%clk 0:00:02]} 44. Bxg7 {[%clk 0:00:07]}  d2 {[%clk 0:00:03]} 0-1


[Site "https://www.chess.com"]

[Event "Titled Tuesday Blitz January 03 Early 2023"]
[White "Mikhalsky, Vladimir"]
[Black "Ingebretsen, Jens E"]
[WhiteFideId "14144352"]
[BlackFideId "1522965"]
[WhiteElo "2219"]
[BlackElo "2342"]
[Result "0-1"]
[Round "07"]
[TimeControl "180+2"]
[Date "2023.01.03"]
[WhiteClock "0:00:10"]
[BlackClock "0:00:17"]

1. d4 {[%clk 0:02:59]}  d5 {[%clk 0:02:38]} 2. c4 {[%clk 0:02:58]}  c6 {[%clk 0:02:38]} 3. Nf3 {[%clk 0:02:57]}  Nf6 {[%clk 0:02:38]} 4. Nc3 {[%clk 0:02:56]}  e6 {[%clk 0:02:39]} 5. e3 {[%clk 0:02:55]}  Nbd7 {[%clk 0:02:39]} 6. Qc2 {[%clk 0:02:54]}  Bd6 {[%clk 0:02:36]} 7. g4 {[%clk 0:02:48]}  h6 {[%clk 0:02:33]} 8. h4 {[%clk 0:02:45]}  dxc4 {[%clk 0:02:27]} 9. Bxc4 {[%clk 0:02:41]}  b5 {[%clk 0:02:23]} 10. Bd3 {[%clk 0:02:40]}  a6 {[%clk 0:02:23]} 11. e4 {[%clk 0:02:35]}  e5 {[%clk 0:02:23]} 12. Rg1 {[%clk 0:02:23]}  exd4 {[%clk 0:02:12]} 13. Nxd4 {[%clk 0:02:23]}  Ne5 {[%clk 0:02:12]} 14. g5 {[%clk 0:02:16]}  hxg5 {[%clk 0:02:09]} 15. hxg5 {[%clk 0:02:15]}  Nfg4 {[%clk 0:01:33]} 16. Be3 {[%clk 0:01:49]}  c5 {[%clk 0:01:30]} 17. Nf5 {[%clk 0:01:41]}  Bxf5 {[%clk 0:01:25]} 18. exf5 {[%clk 0:01:39]}  Nf3+ {[%clk 0:01:18]} 19. Ke2 {[%clk 0:01:39]}  Nxg1+ {[%clk 0:01:19]} 20. Rxg1 {[%clk 0:01:38]}  Nxe3 {[%clk 0:01:19]} 21. Kxe3 {[%clk 0:01:36]}  Qe7+ {[%clk 0:01:10]} 22. Be4 {[%clk 0:01:35]}  Qe5 {[%clk 0:01:03]} 23. a4 {[%clk 0:01:12]}  Rh2 {[%clk 0:00:52]} 24. Nd5 {[%clk 0:00:51]}  c4 {[%clk 0:00:43]} 25. Kf3 {[%clk 0:00:36]}  Bc5 {[%clk 0:00:38]} 26. Ne3 {[%clk 0:00:30]}  Bxe3 {[%clk 0:00:32]} 27. Kxe3 {[%clk 0:00:19]}  O-O-O {[%clk 0:00:30]} 28. axb5 {[%clk 0:00:19]}  axb5 {[%clk 0:00:20]} 29. Rd1 {[%clk 0:00:17]}  Qc5+ {[%clk 0:00:17]} 30. Kf4 {[%clk 0:00:12]}  Rxf2+ {[%clk 0:00:16]} 31. Kg3 {[%clk 0:00:11]}  Rxc2 {[%clk 0:00:16]} 32. Rxd8+ {[%clk 0:00:10]}  Kxd8 {[%clk 0:00:17]} 0-1


[Site "https://www.chess.com"]